bitfinex-derivatives/quotes_SOLF0:USTF0_20250719
["timestamp","ask_amount","ask_price","bid_price","bid_amount"]
[1752952773553,0.04213027,176.73,176.72,8.7856]
[1752952777851,3.16213027,176.73,176.72,8.7856]
[1752952779045,3.16213027,176.73,176.72,3.13]
[1752952780357,3.16213027,176.73,176.72,8.7856]
[1752952781753,3.16213027,176.73,176.72,3.13]
[1752952782258,3.16213027,176.73,176.72,8.7856]
[1752952785558,8.81733027,176.73,176.72,3.13]
[1752952787359,3.16213027,176.73,176.72,3.13]
[1752952787861,5.6556,176.72,176.71,3.14760823]
[1752952788058,10.32480262,176.72,176.71,3.14760823]
[1752952791258,10.32480262,176.72,176.71,0.03760823]
[1752952792962,10.32480262,176.72,176.71,3.13760823]
[1752952793162,3.12213027,176.73,176.71,3.13760823]
[1752952793759,10.32653289,176.73,176.71,3.13760823]
[1752952795060,8.77733027,176.73,176.71,3.13760823]
[1752952798069,5.69733027,176.73,176.71,3.13760823]
[1752952798360,3.08,176.72,176.71,3.13760823]
[1752952799162,3.08,176.72,176.71,0.03760823]
[1752952799163,8.7356,176.72,176.71,0.03760823]
[1752952800464,8.7356,176.72,176.71,3.13760823]
[1752952800663,8.7356,176.72,176.71,0.03760823]
[1752952803869,8.7356,176.72,176.71,3.13760823]
[1752952805468,0.04213027,176.73,176.71,3.13760823]
[1752952805669,0.04213027,176.73,176.72,3.1]
[1752952805871,6.25070211,176.8,176.72,3.1]
[1752952806071,5.6528,176.81,176.79,3.1]
[1752952806273,3.08,176.81,176.79,3.1]
[1752952806474,5.653,176.8,176.79,3.1]
[1752952806675,8.733,176.8,176.79,3.1]
[1752952807573,3.08,176.82,176.79,3.1]
[1752952807769,3.08,176.81,176.79,3.1]
[1752952808885,8.7329,176.81,176.79,3.1]
[1752952809287,3.08,176.81,176.79,3.1]
[1752952809786,2.42081141,176.83,176.79,3.1]
[1752952809987,3.08,176.8,176.79,3.1]
[1752952810688,8.733,176.8,176.79,3.1]
[1752952811786,2.42081141,176.83,176.78,0.03937675]
[1752952811787,8.7333,176.79,176.78,0.03937675]
[1752952812084,8.7333,176.79,176.78,3.13937675]
[1752952813684,8.7333,176.79,176.78,0.03937675]
[1752952813988,8.7333,176.79,176.78,3.13937675]
[1752952816594,11.15411141,176.79,176.78,0.03937675]
[1752952818090,11.15411141,176.79,176.74,3.1]
[1752952818091,3.08,176.76,176.74,3.1]
[1752952818287,3.08,176.76,176.75,3.1]
[1752952818893,8.7343,176.76,176.75,3.1]
[1752952819487,5.6543,176.76,176.75,3.1]
[1752952819691,3.08,176.76,176.72,3.1]
[1752952819889,3.08,176.73,176.72,3.1]
[1752952820091,8.7352,176.73,176.72,3.1]
[1752952820885,5.6552,176.73,176.72,3.1]
[1752952821484,3.13853588,176.74,176.72,3.1]
[1752952823590,0.03853588,176.74,176.72,3.1]
[1752952823791,3.1,176.73,176.72,3.1]
[1752952829296,5.6552,176.73,176.72,3.1]
[1752952829500,8.7552,176.73,176.72,3.1]
[1752952830499,3.1,176.71,176.69,3.07]
[1752952831298,3.1,176.71,176.69,8.7264]
[1752952831501,5.52081141,176.73,176.7,3.07]
[1752952831999,11.17621141,176.73,176.7,3.07]
[1752952832202,3.1,176.72,176.7,3.07]
[1752952833702,5.6554,176.73,176.7,5.6561]
[1752952834001,8.7554,176.73,176.71,3.07]
[1752952835002,5.6554,176.73,176.71,3.07]
[1752952835202,3.1,176.72,176.71,3.07]
[1752952835501,8.7556,176.72,176.71,3.07]
[1752952837707,2.45934729,176.74,176.71,3.07]
[1752952837708,3.13853588,176.74,176.71,3.07]
[1752952838103,0.03853588,176.74,176.73,8.7252]
[1752952838308,3.1,176.81,176.74,3.07]
[1752952838606,8.7529,176.81,176.76,3.07]
[1752952839205,3.1,176.81,176.76,3.07]
[1752952839606,3.1,176.81,176.77,0.03760697]
[1752952839903,3.1,176.81,176.78,3.07]
[1752952840409,3.1,176.81,176.8,3.07]
[1752952841005,8.7527,176.81,176.8,3.07]
[1752952841502,3.1,176.81,176.8,3.07]
[1752952842402,5.6525,176.82,176.8,3.07]
[1752952842604,8.7521,176.83,176.81,3.07]
[1752952843006,3.1,176.82,176.81,3.07]
[1752952843207,3.1,176.84,176.81,3.07]
[1752952843805,3.1,176.86,176.84,3.07]
[1752952844007,3.1,176.88,176.84,3.07]
[1752952844403,3.1,176.87,176.85,3.07]
[1752952844804,5.6509,176.87,176.85,3.07]
[1752952845006,3.1,176.86,176.84,0.04077871]
[1752952845605,3.1,176.86,176.85,3.07]
[1752952847110,8.7511,176.86,176.85,3.07]
[1752952847411,104.04,176.91,176.84,0.04077871]
[1752952847412,3.1,176.85,176.84,3.11077871]
[1752952850013,3.1,176.85,176.84,0.04077871]
[1752952850416,8.7514,176.85,176.84,0.04077871]
[1752952850619,8.9614,176.85,176.84,0.04077871]
[1752952850912,3.31,176.81,176.73,3.03]
[1752952851117,3.31,176.81,176.75,3.03]
[1752952851919,3.31,176.8,176.78,5.6536]
[1752952852517,3.31,176.8,176.79,3.03]
[1752952859123,3.31,176.8,176.79,8.6833]
[1752952859520,3.31,176.8,176.79,3.03]
[1752952860927,3.31,176.8,176.79,8.6833]
[1752952861123,3.31,176.8,176.79,3.03]
[1752952862325,5.653,176.8,176.74,2.42081141]
[1752952862532,3.31,176.79,176.78,3.03]
[1752952862721,3.35280727,176.81,176.79,5.6531]
[1752952862928,3.35280727,176.81,176.8,3.03]
[1752952864827,3.35280727,176.81,176.8,8.683]
[1752952865330,3.35280727,176.81,176.8,3.03]
[1752952866134,9.00550727,176.81,176.8,3.03]
[1752952868032,3.35280727,176.81,176.8,3.03]
[1752952872640,0.04280727,176.81,176.8,3.03]
[1752952872840,3.35280727,176.81,176.8,3.03]
[1752952880144,9.00550727,176.81,176.8,3.03]
[1752952883944,3.35280727,176.81,176.8,8.683]
[1752952884142,0.04280727,176.81,176.8,8.683]
[1752952884345,3.25280727,176.81,176.8,8.683]
[1752952885750,0.04280727,176.81,176.8,8.683]
[1752952885945,2.42081141,176.86,176.82,5.6522]
[1752952886247,11.88151352,176.89,176.83,3.06]
[1752952886448,5.63081141,176.89,176.83,3.06]
[1752952886645,3.21,176.89,176.83,3.06]
[1752952887350,3.21,176.88,176.87,3.06]
[1752952888548,8.8604,176.88,176.87,3.06]
[1752952889151,3.21,176.88,176.87,3.06]
[1752952889952,8.8604,176.88,176.87,3.06]
[1752952893656,3.21,176.88,176.87,3.06]
[1752952897157,3.21,176.88,176.87,8.7108]
[1752952897459,3.21,176.88,176.87,3.06]
[1752952900565,3.21,176.9,176.87,3.06]
[1752952901063,3.21,176.9,176.89,8.7101]
[1752952901264,8.8597,176.91,176.89,5.6501]
[1752952901468,8.8597,176.91,176.9,3.06]
[1752952901862,3.21,176.91,176.9,3.06]
[1752952902868,3.21,176.91,176.9,8.7098]
[1752952906465,5.6486,176.94,176.9,3.06]
[1752952906665,3.21,176.93,176.89,3.06]
[1752952907162,3.21,176.93,176.92,5.6489]
[1752952907366,3.21,176.93,176.92,8.7089]
[1752952907561,3.21,176.94,176.93,3.06]
[1752952907966,5.6485,176.95,176.94,3.06]
[1752952908168,8.8585,176.95,176.94,3.06]
[1752952908467,8.8585,176.94,176.93,3.06]
[1752952908664,2.42081141,176.96,176.93,0.04217889]
[1752952908968,8.06931141,176.94,176.93,0.04217889]
[1752952909163,8.06931141,176.94,176.89,3.06]
[1752952909164,3.21,176.93,176.89,3.06]
[1752952909667,3.21,176.9,176.89,3.06]
[1752952911165,3.04964682,176.91,176.89,3.06]
[1752952911468,3.01,176.9,176.89,3.06]
[1752952911672,8.6598,176.9,176.89,3.06]
[1752952914170,3.01,176.9,176.89,3.06]
[1752952914370,8.69924682,176.91,176.89,3.06]
[1752952915468,5.6498,176.9,176.89,3.06]
[1752952915669,8.6598,176.9,176.89,3.06]
[1752952920667,3.01,176.9,176.89,3.06]
[1752952923775,8.6598,176.9,176.89,3.06]
[1752952924369,3.01,176.9,176.89,3.06]
[1752952925074,8.6598,176.9,176.89,3.06]
[1752952925270,3.01,176.89,176.8,4.73851045]
[1752952925469,3.01,176.86,176.81,3.24]
[1752952925669,3.01,176.86,176.83,5.6518]
[1752952925670,1.54601161,176.86,176.83,5.6518]
[1752952925977,3.01,176.85,176.84,3.24]
[1752952926476,3.01,176.85,176.84,8.8917]
[1752952926671,3.01,176.86,176.84,8.8917]
[1752952926877,3.01,176.86,176.85,3.24]
[1752952928778,3.01,176.86,176.85,8.8914]
[1752952931178,3.01,176.86,176.85,3.24]
[1752952933279,3.01,176.86,176.85,5.6514]
[1752952933881,3.01,176.86,176.85,3.24]
[1752952938683,0.04140308,176.87,176.85,4.78601161]
[1752952938885,0.04140308,176.87,176.86,4.78601161]
[1752952939284,3.01,176.91,176.86,1.54601161]
[1752952939586,3.01,176.91,176.89,3.24]
[1752952939782,3.01,176.93,176.91,3.24]
[1752952940082,1.54601161,176.96,176.92,4.78601161]
[1752952940285,3.01,176.95,176.93,3.06]
[1752952940485,3.17,176.94,176.93,3.06]
[1752952950183,6.25070211,177.0,176.93,3.06]
[1752952950386,6.25070211,177.0,176.95,3.06]
[1752952950387,3.17,176.99,176.95,3.06]
[1752952950782,3.17,176.98,176.96,5.6479]
[1752952950989,3.17,176.98,176.97,3.06]
[1752952951493,3.17,176.99,176.97,3.06]
[1752952952493,3.17,177.02,176.97,3.06]
[1752952952892,3.17,177.02,176.96,5.6477]
[1752952953094,3.17,177.02,176.98,3.06]
[1752952953893,5.647,176.99,176.98,3.06]
[1752952954093,8.817,176.99,176.98,3.06]
[1752952955089,3.17,176.99,176.98,3.06]
[1752952955687,3.17,177.0,176.99,3.06]
[1752952955892,3.17,177.01,176.99,3.06]
[1752952956492,3.17,177.01,177.0,3.06]
[1752952956800,2.41439716,177.05,177.0,3.06]
[1752952956994,3.17,177.02,177.01,3.06]
[1752952959090,3.17,177.02,177.01,8.7063]
[1752952959286,5.6455,177.04,177.01,3.06]
[1752952959287,3.17,177.04,177.01,3.06]
[1752952959587,3.17,177.04,177.02,5.6457]
[1752952959794,3.17,177.04,177.03,3.06]
[1752952963097,3.17,177.04,177.03,8.7057]
[1752952963291,3.17,177.04,177.03,5.6457]
[1752952963494,3.17,177.04,177.03,3.06]
[1752952964689,3.17,177.05,177.04,3.06]
[1752952965898,2.41439716,177.1,177.04,3.06]
[1752952966091,3.17,177.09,177.04,3.06]
[1752952966696,3.17,177.07,177.06,3.06]
[1752952966895,3.17,177.07,177.05,0.04171281]
[1752952967092,5.6447,177.06,177.05,0.04171281]
[1752952967296,8.8147,177.06,177.05,0.04171281]
[1752952970902,5.6457,177.03,177.02,3.31]
[1752952971103,8.7757,177.03,177.02,3.31]
[1752952972792,3.13,177.03,177.02,3.31]
[1752952974500,8.7757,177.03,177.02,3.31]
[1752952974899,5.54439716,177.03,177.0,3.31]
[1752952975103,5.6465,177.01,176.98,5.6472]
[1752952975305,3.13,177.0,176.97,3.31]
[1752952975601,3.13,177.0,176.95,3.31]
[1752952976097,5.6468,177.0,176.97,5.6474]
[1752952976297,3.13,176.99,176.98,3.31]
[1752952977098,3.13,176.97,176.96,3.31]
[1752952979099,8.7776,176.97,176.96,3.31]
[1752952979306,3.13,176.97,176.94,3.31]
[1752952979497,5.54439716,176.97,176.94,3.31]
[1752952979702,3.13,176.94,176.92,3.31]
[1752952979998,8.7788,176.94,176.92,3.31]
[1752952980203,3.13,176.93,176.92,3.31]
[1752952980503,3.13,176.93,176.92,8.9592]
[1752952980902,3.13,176.93,176.92,3.31]
[1752952982309,3.13,176.94,176.92,8.9592]
[1752952982601,3.13,176.94,176.93,3.31]
[1752952983305,3.13,176.96,176.93,3.31]
[1752952983903,3.13,176.96,176.94,5.6485]
[1752952984208,3.13,176.96,176.95,3.31]
[1752952985808,3.13,176.95,176.92,3.31]
[1752952986108,5.54439716,176.95,176.9,3.31]
[1752952986308,5.6492,176.92,176.89,103.56]
[1752952986506,3.13,176.91,176.89,103.56]
[1752952986900,3.13,176.91,176.9,3.31]
[1752952987410,3.13,176.91,176.9,8.9598]
[1752952987610,5.54439716,176.93,176.9,8.9598]
[1752952987810,3.13,176.92,176.91,3.31]
[1752952989910,3.13,176.92,176.91,8.9595]
[1752952990310,3.13,176.92,176.91,3.31]
[1752952990608,3.13,176.94,176.91,3.31]
[1752952991013,3.17090507,176.95,176.91,3.31]
[1752952991714,3.13,176.94,176.93,3.31]
[1752952993910,3.13,176.94,176.91,3.31]
[1752952994110,3.13,176.94,176.9,3.31]
[1752952995018,3.13,176.94,176.9,5.6495]
[1752952995315,3.13,176.94,176.92,3.31]
[1752952996012,3.13,176.94,176.91,5.6493]
[1752952996215,3.13,176.94,176.93,3.31]
[1752952998822,3.13,176.94,176.91,3.34934573]
[1752953000321,3.19,176.93,176.92,3.12]
[1752953005527,8.8389,176.93,176.91,0.03934573]
[1752953005726,3.19,176.92,176.91,3.15934573]
[1752953008726,0.04090507,176.95,176.93,5.6489]
[1752953008933,0.04090507,176.95,176.94,3.12]
[1752953009125,3.23090507,176.95,176.94,3.12]
[1752953011526,0.04090507,176.95,176.94,8.7685]
[1752953011727,3.23090507,176.95,176.94,8.7685]
[1752953012528,3.23090507,176.95,176.94,3.12]
[1752953012733,0.04090507,176.95,176.94,3.12]
[1752953013230,3.19,176.98,176.97,3.12]
[1752953013425,116.41999553,176.99,176.97,3.12]
[1752953013629,119.60999553,176.99,176.97,3.12]
[1752953014132,3.19,177.0,176.97,3.12]
[1752953014332,8.8361,177.02,176.97,3.12]
[1752953014534,3.19,177.01,176.97,3.15641155]
[1752953015135,3.19,177.01,176.98,5.6472]
[1752953015336,3.19,177.0,176.99,3.12]
[1752953016532,3.19,177.0,176.98,3.15601494]
[1752953016737,3.19,177.0,176.98,0.03601494]
[1752953017534,8.8368,177.0,176.98,0.03601494]
[1752953017734,3.19,176.99,176.98,0.03601494]
[1752953017934,3.19,176.99,176.98,3.15601494]
[1752953021039,8.8369,176.99,176.98,3.15601494]
[1752953021641,3.19,176.99,176.98,3.15601494]
[1752953025346,8.8369,176.99,176.98,0.03601494]
[1752953028352,3.19,176.98,176.93,3.12]
[1752953028541,2.41439716,176.97,176.93,3.12]
[1752953028746,3.19,176.96,176.93,3.12]
[1752953028946,5.6485,176.95,176.93,3.12]
[1752953029148,3.19,176.94,176.93,3.12]
[1752953029646,8.8385,176.94,176.93,3.12]
[1752953030048,3.19,176.94,176.93,3.12]
[1752953030541,5.68965941,176.95,176.93,3.12]
[1752953030542,0.04135941,176.95,176.93,3.12]
[1752953030940,3.27135941,176.95,176.93,3.12]
[1752953031550,3.23,176.94,176.93,3.12]
[1752953035345,8.8785,176.94,176.92,0.03894284]
[1752953035545,3.23,176.93,176.92,0.03894284]
[1752953035751,3.23,176.93,176.92,3.11894284]
[1752953037563,8.8789,176.93,176.92,0.03894284]
[1752953039264,8.8789,176.93,176.92,3.11894284]
[1752953040368,3.23,176.93,176.92,3.11894284]
[1752953041360,8.8789,176.93,176.92,3.11894284]
[1752953042464,3.23,176.93,176.92,3.11894284]
[1752953043066,8.8789,176.93,176.92,3.11894284]
[1752953044559,3.23,176.93,176.92,3.11894284]
[1752953046165,8.8789,176.93,176.92,0.03894284]
[1752953047061,8.8789,176.93,176.92,3.11894284]
[1752953051465,3.23,176.93,176.92,3.11894284]
[1752953051666,8.8787,176.94,176.92,3.11894284]
[1752953055376,5.6487,176.94,176.92,3.11894284]
[1752953055565,8.8789,176.93,176.92,3.11894284]
[1752953055765,3.23,176.93,176.92,3.11894284]
[1752953055963,8.8789,176.93,176.92,3.11894284]
[1752953056571,3.23,176.93,176.92,3.11894284]
[1752953057871,8.8789,176.93,176.92,3.11894284]
[1752953058073,3.27135941,176.95,176.92,3.11894284]
[1752953059072,5.68575657,176.95,176.92,0.03894284]
[1752953059373,8.8789,176.93,176.92,0.03894284]
[1752953060172,8.8789,176.93,176.92,3.11894284]
[1752953062972,10.42481441,176.93,176.92,3.11894284]
[1752953068774,10.42481441,176.93,176.92,0.03894284]
[1752953069280,4.77591441,176.93,176.92,3.15894284]
[1752953072478,10.42481441,176.93,176.92,3.15894284]
[1752953072680,8.8789,176.93,176.92,3.15894284]
[1752953074283,3.23,176.93,176.92,3.15894284]
[1752953077083,8.8789,176.93,176.92,3.15894284]
[1752953085390,8.8789,176.93,176.92,0.03894284]
[1752953085889,5.6498,176.9,176.88,3.12]
[1752953086093,3.28,176.89,176.88,3.12]
[1752953088797,8.9301,176.89,176.88,3.12]
[1752953089599,3.28,176.89,176.88,3.12]
[1752953091499,8.9301,176.89,176.88,3.12]
[1752953094001,3.06,176.87,176.86,3.1]
[1752953094600,3.06,176.87,176.86,5.6511]
[1752953094801,3.06,176.87,176.86,8.7511]
[1752953095101,7.23693059,176.9,176.87,8.7507]
[1752953095305,3.06,176.89,176.88,3.1]
[1752953096096,0.04111618,176.9,176.88,3.1]
[1752953096299,3.06,176.89,176.88,3.1]
[1752953097202,3.06,176.89,176.88,8.7505]
[1752953097703,0.04111618,176.9,176.89,8.7501]
[1752953098504,5.6487,176.94,176.92,3.1]
[1752953098804,8.7087,176.94,176.92,3.1]
[1752953099804,8.7087,176.94,176.92,8.7492]
[1752953100004,8.7087,176.94,176.93,3.1]
[1752953100807,8.7084,176.95,176.94,3.1]
[1752953101199,5.6486,176.94,176.93,3.1]
[1752953101505,3.06,176.94,176.93,3.1]
[1752953103907,3.06,176.95,176.94,3.1]
[1752953106905,5.6478,176.97,176.94,1.54591441]
[1752953107107,3.06,176.96,176.95,3.1]
[1752953110210,8.7079,176.96,176.95,3.1]
[1752953111511,3.06,176.94,176.93,1.54591441]
[1752953112015,3.06,176.94,176.93,4.64591441]
[1752953114217,3.06,176.94,176.92,1.54591441]
[1752953114418,3.06,176.93,176.92,3.1]
[1752953114819,3.06,176.93,176.92,4.64591441]
[1752953115112,3.06,176.94,176.92,4.64591441]
[1752953115319,3.06,176.94,176.93,3.1]
[1752953116222,1.54591441,176.98,176.93,3.1]
[1752953116413,3.06,176.96,176.95,3.1]
[1752953117320,3.06,176.97,176.95,3.1]
[1752953117517,3.06,176.97,176.96,1.54591441]
[1752953117723,3.06,176.99,176.97,3.1]
[1752953117917,3.06,176.98,176.96,7.19361441]
[1752953118624,3.06,176.98,176.97,3.1]
[1752953119021,8.7073,176.98,176.97,3.1]
[1752953119216,8.7073,176.98,176.95,1.54591441]
[1752953119217,3.06,176.98,176.95,1.54591441]
[1752953119521,5.6476,176.97,176.95,4.64591441]
[1752953119723,3.06,176.96,176.95,4.64591441]
[1752953120825,3.06,176.96,176.95,10.29411441]
[1752953121326,3.06,176.96,176.95,8.7482]
[1752953121521,3.06,176.96,176.95,3.1]
[1752953122023,3.06,176.96,176.95,4.64591441]
[1752953122327,3.06,176.96,176.95,10.29411441]
[1752953122926,3.18,176.97,176.96,3.14]
[1752953123225,8.827,176.99,176.96,10.33381441]
[1752953123425,3.18,176.98,176.97,3.14]
[1752953124017,8.8268,177.0,176.98,3.14]
[1752953124219,8.8268,177.0,176.98,4.68591441]
[1752953124424,8.8268,177.0,176.99,3.14]
[1752953124931,5.6468,177.0,176.99,3.14]
[1752953125222,8.8265,177.01,176.99,3.14]
[1752953125525,3.18,177.0,176.99,3.14]
[1752953126518,3.18,177.01,176.99,8.7869]
[1752953126726,3.18,177.01,177.0,3.14]
[1752953127428,3.18,177.01,177.0,8.7867]
[1752953127923,3.18,177.01,177.0,3.14]
[1752953131832,3.18,177.01,176.99,1.54591441]
[1752953132038,1.54591441,177.0,176.97,3.14]
[1752953132337,3.18,176.99,176.96,3.14]
[1752953132542,5.6473,176.98,176.96,3.14]
[1752953132739,3.18,176.97,176.95,4.68591441]
[1752953133339,3.18,176.96,176.95,4.68591441]
[1752953135036,3.18,176.96,176.95,3.14]
[1752953140646,3.18,176.95,176.94,3.14]
[1752953140840,3.18,176.95,176.87,4.74660947]
[1752953141047,8.06337506,176.91,176.84,3.14]
[1752953141347,3.18,176.9,176.84,3.14]
[1752953141544,3.18,176.9,176.86,5.6509]
[1752953141746,3.18,176.9,176.88,3.14]
[1752953142244,3.18,176.9,176.86,3.14]
[1752953142542,3.18,176.89,176.84,3.14]
[1752953142944,3.18,176.89,176.85,3.14]
[1752953143145,3.18,176.87,176.82,3.14]
[1752953143843,5.69414141,176.86,176.82,3.14]
[1752953144042,3.18,176.85,176.83,3.14]
[1752953144744,3.18,176.84,176.83,5.6521]
[1752953145143,3.18,176.84,176.83,3.14]
[1752953145343,3.18,176.84,176.82,5.6523]
[1752953145645,3.18,176.84,176.81,3.14]
[1752953145840,3.18,176.84,176.77,2.41377506]
[1752953146040,3.18,176.83,176.77,2.41377506]
[1752953146551,3.18,176.83,176.82,8.7923]
[1752953148744,0.03884162,176.84,176.83,5.6521]
[1752953148949,0.03884162,176.84,176.83,8.7921]
[1752953152352,5.6497,176.91,176.87,3.1]
[1752953152552,3.28,176.89,176.87,3.1]
[1752953153853,3.28,176.89,176.88,5.6503]
[1752953154145,3.28,176.89,176.88,8.7503]
[1752953155154,3.28,176.9,176.89,5.6499]
[1752953155355,3.28,176.9,176.89,8.7499]
[1752953157056,3.28,176.9,176.89,3.1]
[1752953159758,3.28,176.94,176.89,3.1]
[1752953159959,3.28,176.94,176.89,5.51377506]
[1752953160155,5.6483,176.95,176.89,2.41377506]
[1752953160355,89.66930221,176.98,176.89,2.41377506]
[1752953160356,3.28,176.94,176.9,3.1]
[1752953160758,3.28,176.93,176.92,3.1]
[1752953162562,3.28,176.93,176.92,8.7492]
[1752953163563,5.6477,176.97,176.93,8.7489]
[1752953163863,3.28,176.96,176.95,3.1]
[1752953165064,3.28,176.98,176.95,3.1]
[1752953165359,3.28,176.97,176.95,3.1]
[1752953166560,3.28,176.96,176.95,3.1]
[1752953169460,3.28,176.96,176.95,8.7483]
[1752953169863,3.28,176.96,176.95,3.1]
[1752953170668,3.28,176.96,176.95,8.7483]
[1752953171368,3.28,176.96,176.95,3.1]
[1752953172370,3.28,176.96,176.93,3.1]
[1752953172669,3.28,176.96,176.89,2.41377506]
[1752953172870,8.9282,176.96,176.93,3.1]
[1752953173068,3.28,176.95,176.93,3.1]
[1752953174372,3.28,176.98,176.94,8.7484]
[1752953174565,3.28,176.97,176.95,3.1]
[1752953174770,3.28,176.96,176.94,5.6484]
[1752953175170,3.28,176.96,176.95,3.1]
[1752953175572,5.6467,177.0,176.95,5.6483]
[1752953175772,3.28,176.99,176.95,5.6483]
[1752953175968,3.28,176.99,176.97,3.1]
[1752953176271,3.28,176.98,176.97,3.1]
[1752953183879,3.02,177.03,176.97,5.51377506]
[1752953184068,3.02,177.03,176.98,3.27]
[1752953184375,8.6659,177.03,176.98,8.9171]
[1752953184570,3.02,177.02,176.98,5.6471]
[1752953184775,3.02,177.02,177.0,3.27]
[1752953184976,3.02,177.02,176.99,3.27]
[1752953185878,3.02,177.01,176.99,3.27]
[1752953186880,3.02,177.01,176.99,8.9167]
[1752953187171,3.02,177.07,177.01,3.27]
[1752953188075,3.02,177.07,177.03,3.27]
[1752953189479,3.02,177.07,177.04,5.6452]
[1752953189684,3.02,177.07,177.06,3.27]
[1752953190278,3.02,177.06,177.04,3.27]
[1752953190480,3.02,177.06,177.05,3.27]
[1752953194080,3.02,177.06,177.05,8.9151]
[1752953194779,3.02,177.06,177.05,3.27]
[1752953194986,8.6642,177.08,177.05,3.27]
[1752953195185,3.02,177.07,177.05,3.27]
[1752953195481,3.02,177.07,177.04,5.6453]
[1752953195682,3.02,177.07,177.06,3.27]
[1752953199575,3.02,177.09,177.04,2.41377506]
[1752953199775,3.02,177.08,177.04,2.41377506]
[1752953200079,3.02,177.08,177.05,3.27]
[1752953200474,3.02,177.08,177.05,8.9148]
[1752953200677,3.02,177.13,177.06,5.68377506]
[1752953200975,3.02,177.13,177.07,3.27]
[1752953201281,5.643,177.12,177.07,5.6442]
[1752953201483,3.02,177.11,177.08,3.27]
[1752953201981,3.02,177.1,177.09,3.27]
[1752953203680,123.69771253,177.14,177.09,3.27]
[1752953203882,3.02,177.12,177.1,3.27]
[1752953204376,3.02,177.12,177.11,8.9132]
[1752953204580,3.02,177.12,177.11,3.27]
[1752953206086,3.02,177.13,177.12,3.27]
[1752953206483,3.02,177.13,177.09,5.6435]
[1752953206683,3.02,177.13,177.1,3.27]
[1752953207085,3.02,177.13,177.11,3.27]
[1752953207385,3.02,177.12,177.11,3.27]
[1752953207786,3.02,177.12,177.1,3.27]
[1752953208085,3.02,177.1,177.08,3.27]
[1752953208389,3.02,177.1,177.06,3.27]
[1752953208589,3.02,177.08,177.05,8.915]
[1752953209085,3.02,177.08,177.06,3.27]
[1752953210591,3.08,177.07,177.04,5.6453]
[1752953210890,3.08,177.07,177.04,3.31]
[1752953211080,3.08,177.06,177.04,8.9554]
[1752953211482,3.08,177.06,177.04,3.31]
[1752953211784,3.08,177.06,176.95,11.2962]
[1752953211987,3.08,177.06,177.02,3.31]
[1752953212179,3.08,177.05,177.02,8.9559]
[1752953212379,3.08,177.05,176.99,3.31]
[1752953212779,3.08,177.05,177.0,2.41377506]
[1752953212986,2.41377506,177.09,177.03,3.31]